bitfinex/quotes_ETHUSD_20251021
["timestamp","ask_amount","ask_price","bid_price","bid_amount"]
[1761085462508,5.92961276,3929.8,3929.5,0.003]
[1761085462509,5.92974227,3929.6,3929.5,0.003]
[1761085462717,4.940154,3929.6,3929.5,0.003]
[1761085462924,5.96088,3929.6,3929.5,0.003]
[1761085463336,8.50566827,3929.6,3929.5,0.003]
[1761085463708,0.50688,3929.6,3929.5,0.003]
[1761085463905,10.25697816,3930.9,3929.5,0.003]
[1761085463906,0.4401,3930.7,3929.5,0.003]
[1761085464108,0.2239,3930.9,3929.6,0.02544788]
[1761085464318,0.224,3931.2,3930.1,2.54445956]
[1761085464542,0.224,3931.2,3930.2,14.91304596]
[1761085464743,3.439,3931.1,3930.2,14.91304596]
[1761085464924,0.50688,3930.9,3930.2,14.5]
[1761085465118,3.05096513,3930.7,3929.5,0.003]
[1761085465320,2.06208,3930.5,3929.5,0.003]
[1761085465536,0.50688,3930.0,3929.5,0.003]
[1761085465720,2.06208,3929.8,3929.5,0.003]
[1761085466040,0.224,3930.9,3929.5,0.003]
[1761085466041,0.50688,3929.6,3929.5,0.003]
[1761085466210,3.94688,3929.6,3929.5,0.003]
[1761085467041,0.50688,3930.2,3929.5,0.003]
[1761085467241,2.06208,3930.0,3929.5,0.003]
[1761085467546,2.54422601,3930.5,3929.5,0.003]
[1761085467547,3.438,3929.9,3929.5,0.003]
[1761085468054,0.4401,3930.8,3929.7,2.54466676]
[1761085468224,1.5552,3930.6,3929.8,0.02544658]
[1761085468544,2.314,3930.6,3930.0,2.54451624]
[1761085468740,2.314,3930.6,3929.6,1.9949]
[1761085468910,2.314,3930.6,3929.7,0.45427514]
[1761085469116,2.314,3930.6,3929.7,0.89397514]
[1761085469333,2.314,3930.6,3930.1,2.54441163]
[1761085469719,2.314,3930.6,3930.2,2.70299428]
[1761085469934,2.314,3930.6,3930.2,0.5983]
[1761085470461,2.314,3930.6,3930.2,0.1586]
[1761085471952,2.314,3930.6,3930.1,0.1586]
[1761085472117,2.314,3930.6,3930.1,3.27180467]
[1761085472928,2.314,3930.6,3930.1,0.727346]
[1761085473174,0.50688,3931.3,3930.2,0.46514399]
[1761085473377,2.54309932,3932.3,3931.2,0.1649]
[1761085473567,0.55260463,3932.3,3931.2,0.1649]
[1761085473872,2.54279383,3932.7,3931.5,2.54355567]
[1761085474172,0.50688,3932.5,3931.5,2.54355567]
[1761085474372,2.54279701,3932.7,3931.5,2.54355567]
[1761085474670,0.50688,3932.5,3931.5,2.54355567]
[1761085474877,0.6917777,3932.5,3931.5,2.54355567]
[1761085475080,3.427,3932.4,3931.6,2.56889913]
[1761085475454,1.5552,3932.3,3931.6,2.56889913]
[1761085475839,1.5552,3932.3,3931.6,0.02543493]
[1761085476040,1.5552,3932.3,3931.5,2.98324094]
[1761085476041,1.5552,3932.3,3931.5,0.4397]
[1761085476371,2.37689497,3932.3,3931.3,2.54367037]
[1761085476679,2.37689497,3932.3,3931.3,2.54368384]
[1761085477673,2.37689497,3932.3,3931.4,2.54362289]
[1761085477846,1.5552,3932.3,3931.5,2.54353974]
[1761085478055,3.42,3932.2,3931.5,2.54353974]
[1761085478254,1.5552,3932.6,3931.5,2.54353974]
[1761085478255,3.42,3932.1,3931.5,2.54353974]
[1761085478439,0.50688,3932.8,3931.2,0.1649]
[1761085478643,0.50688,3932.8,3931.7,2.54337742]
[1761085478966,3.419,3932.7,3931.8,2.56874783]
[1761085479144,3.419,3932.7,3931.8,2.54331419]
[1761085479346,3.419,3932.7,3931.6,0.4397]
[1761085479540,3.8591,3932.7,3931.6,2.54343161]
[1761085479893,3.418,3932.6,3931.7,2.5434271]
[1761085480889,3.418,3932.6,3931.4,0.4397]
[1761085481086,2.54300411,3932.4,3931.4,0.4397]
[1761085481480,2.54305644,3932.3,3931.4,0.4397]
[1761085481675,2.54298587,3932.4,3931.4,0.4397]
[1761085481999,0.50688,3932.2,3930.8,1.5552]
[1761085482191,3.44358879,3932.1,3931.1,0.1649]
[1761085482374,3.2366122,3932.0,3931.1,0.1649]
[1761085482579,2.54330653,3931.9,3931.1,0.1649]
[1761085482780,2.76730653,3931.9,3931.1,0.1649]
[1761085483368,0.224,3931.9,3930.7,0.4397]
[1761085483567,0.4401,3931.8,3930.6,5.97213239]
[1761085483879,0.4401,3931.8,3930.6,6.41183239]
[1761085484256,0.4401,3931.8,3930.8,2.54395338]
[1761085484694,1.42885491,3931.8,3930.9,2.54393846]
[1761085484889,1.42885491,3931.8,3930.6,3.8677]
[1761085485098,0.47168879,3931.7,3930.5,1.5552]
[1761085485278,6.45743546,3931.6,3930.1,0.1586]
[1761085485479,0.50688,3931.4,3930.3,2.54428593]
[1761085485693,1.13969128,3931.3,3930.3,2.54428593]
[1761085485903,0.50688,3931.2,3930.2,2.54439846]
[1761085486205,0.50688,3931.0,3930.3,2.54433]
[1761085486493,3.406,3930.9,3930.1,0.5983]
[1761085486695,3.406,3930.9,3930.2,2.54439977]
[1761085486897,3.406,3930.9,3930.4,2.54425203]
[1761085487279,3.406,3930.9,3930.1,0.5983]
[1761085487474,3.406,3930.9,3930.4,2.54426991]
[1761085487682,3.406,3930.9,3930.6,2.54413245]
[1761085488084,3.406,3930.9,3930.7,0.4397]
[1761085488617,6.34,3931.4,3930.8,2.54401139]
[1761085488618,3.405,3931.3,3930.8,2.54401139]
[1761085488788,3.405,3931.3,3930.7,0.4397]
[1761085488991,6.34,3931.4,3931.2,0.1649]
[1761085489190,3.404,3931.6,3931.2,0.1649]
[1761085489391,3.404,3931.7,3931.2,2.70863971]
[1761085489585,3.404,3931.7,3931.2,3.1483407]
[1761085490785,3.404,3931.7,3931.2,0.6046]
[1761085491002,3.404,3931.7,3931.2,0.1649]
[1761085491889,3.404,3931.7,3930.9,2.54392852]
[1761085492496,3.404,3931.7,3931.0,2.54387089]
[1761085493213,3.404,3931.7,3930.9,2.54393306]
[1761085493619,3.404,3931.7,3931.0,2.54385451]
[1761085494024,3.404,3931.7,3930.4,0.4397]
[1761085494187,3.404,3931.7,3930.3,1.5552]
[1761085494383,3.404,3931.7,3930.8,2.544007]
[1761085495018,3.404,3931.7,3931.0,2.543832]
[1761085495232,3.404,3931.7,3930.8,0.4542]
[1761085495233,3.404,3931.7,3930.8,2.54399516]
[1761085495591,3.8754,3931.7,3930.8,2.54399516]
[1761085496208,3.404,3931.7,3930.9,2.54392347]
[1761085498187,4.02113796,3931.7,3930.9,2.54394389]
[1761085498391,4.02113796,3931.7,3930.7,2.99827223]
[1761085498392,3.393,3931.6,3930.8,2.54400395]
[1761085499119,3.388,3931.5,3930.8,2.54400395]
[1761085499621,3.388,3931.5,3930.9,2.54394101]
[1761085500322,3.388,3931.5,3930.6,2.99833878]
[1761085500323,3.388,3931.5,3930.8,2.54400105]
[1761085500527,0.50688,3931.4,3930.4,2.5442703]
[1761085500821,0.50688,3931.4,3930.6,2.54409108]
[1761085501193,0.50688,3931.4,3930.6,2.54412609]
[1761085501392,0.224,3931.9,3930.3,2.0094]
[1761085501393,0.6954,3931.9,3931.0,2.54383474]
[1761085501724,3.89488,3931.8,3930.9,2.54393773]
[1761085501909,3.89488,3931.8,3930.8,2.54401139]
[1761085502224,0.4714,3932.4,3930.9,0.02543946]
[1761085502526,0.13023949,3933.4,3930.9,0.02543946]
[1761085502527,1.5552,3932.2,3931.2,2.54370781]
[1761085502694,1.5552,3932.2,3931.0,2.54388196]
[1761085502695,0.2239,3932.9,3931.3,0.02543687]
[1761085502891,1.712,3933.1,3931.1,2.19973817]
[1761085503090,0.6986,3932.9,3931.2,0.4542]
[1761085503304,0.03158879,3932.8,3931.5,2.54350622]
[1761085503509,3.04973925,3932.6,3931.5,2.54350622]
[1761085503704,3.388,3932.5,3931.5,2.54350622]
[1761085503928,3.388,3932.5,3931.2,0.4542]
[1761085503929,3.388,3932.5,3931.7,2.54341947]
[1761085505132,3.04974338,3932.6,3931.1,1.7201]
[1761085505133,0.50688,3932.6,3931.1,1.7201]
[1761085505300,0.2272,3932.9,3932.1,2.54315915]
[1761085505500,3.388,3932.8,3932.1,2.54315915]
[1761085505909,3.388,3932.8,3931.8,0.4542]
[1761085506227,3.388,3932.8,3932.7,2.54278231]
[1761085506529,0.001,3933.0,3932.7,2.54278231]
[1761085506740,0.001,3933.0,3932.3,0.0254304]
[1761085506976,0.001,3933.0,3932.9,2.542653]
[1761085507225,0.001,3933.0,3932.1,2.543143]
[1761085507226,0.001,3933.0,3932.4,2.54296836]
[1761085507430,3.6152,3932.9,3931.1,0.1649]
[1761085507604,4.0866,3932.9,3931.4,0.4542]
[1761085507813,4.0866,3932.9,3931.9,2.54328136]
[1761085508009,2.54271765,3932.8,3932.0,2.54323346]
[1761085508236,4.0866,3932.9,3931.4,0.4542]
[1761085508449,2.54283608,3932.7,3931.4,0.4542]
[1761085508610,0.6945324,3932.6,3931.5,2.54350525]
[1761085508804,2.54291163,3932.5,3931.6,2.54347686]
[1761085509018,0.50688,3932.8,3931.3,0.4542]
[1761085509251,0.50688,3932.8,3931.9,2.54326596]
[1761085509452,3.04966197,3932.8,3931.9,2.54326596]
[1761085509655,2.54280644,3932.7,3931.9,2.54326596]
[1761085509953,4.01759114,3932.8,3932.0,2.54323173]
[1761085510307,1.47486532,3932.8,3931.7,0.4542]
[1761085510506,3.389,3932.7,3931.9,2.54329967]
[1761085510774,0.001,3933.0,3931.8,0.4542]
[1761085510940,3.389,3932.9,3932.4,2.54296715]
[1761085511439,3.389,3932.9,3932.3,2.54302959]
[1761085511764,0.001,3933.0,3932.2,0.02543105]
[1761085511970,0.001,3933.0,3932.3,2.54304096]
[1761085512571,0.001,3933.0,3932.4,0.02542976]
[1761085512866,0.001,3933.0,3932.2,2.99728211]
[1761085513868,0.001,3933.0,3932.2,0.4542]
[1761085514170,2.54271765,3932.8,3931.9,1.5552]
[1761085514672,3.01411765,3932.8,3932.0,2.54318726]
[1761085515470,2.5427904,3932.7,3932.0,2.54318726]
[1761085515846,0.53846879,3932.8,3931.7,0.4542]
[1761085516047,0.4714,3932.7,3931.8,2.54336265]
[1761085516242,2.54293089,3932.5,3931.8,2.54336265]
[1761085516571,3.01418327,3932.7,3931.6,2.54345401]
[1761085516572,2.54300136,3932.4,3931.6,2.54345401]
[1761085516769,3.01418327,3932.7,3931.7,2.54342868]
[1761085516770,2.54297567,3932.5,3931.7,2.54342868]
[1761085517146,3.01437567,3932.5,3931.7,2.54342868]
[1761085517342,6.40137567,3932.5,3931.7,2.54342868]
[1761085517574,2.54299731,3932.4,3931.7,2.54342868]
[1761085518067,3.43741594,3932.4,3931.7,2.54342868]
[1761085518271,3.90881594,3932.4,3931.7,2.54342868]
[1761085518476,3.90881594,3932.4,3931.4,2.54357349]
[1761085518477,2.54310564,3932.2,3931.4,2.54357349]
[1761085518663,2.5433523,3931.9,3931.3,2.212]
[1761085518845,3.05516344,3931.9,3931.1,0.1649]
[1761085519043,0.2272,3931.8,3931.1,0.1649]
[1761085519243,0.2272,3931.8,3931.3,2.5436436]
[1761085519757,0.2272,3932.9,3931.1,0.1649]
[1761085519956,5.92976508,3932.8,3932.0,2.54318879]
[1761085520280,0.3398,3933.0,3932.1,0.4428]
[1761085520281,3.388,3933.0,3932.1,0.4428]
[1761085520578,0.2253,3932.9,3931.9,2.54325151]
[1761085520780,2.54271765,3932.8,3931.6,2.54347543]
[1761085520969,2.54290261,3932.6,3931.8,2.54332999]
[1761085521479,2.99350261,3932.6,3931.8,2.54334811]
[1761085521677,0.4506,3932.5,3931.4,3.387]
[1761085521880,0.48218879,3932.5,3931.4,3.387]
[1761085522080,2.54323469,3932.1,3931.4,3.387]
[1761085522456,2.54324672,3932.0,3931.4,3.387]
[1761085522656,0.4506,3932.1,3931.1,0.1649]
[1761085522863,2.54339075,3931.8,3931.1,0.1649]
[1761085523094,2.54339075,3931.8,3930.5,2.54415]
[1761085523095,2.54349374,3931.6,3930.5,2.54415]
[1761085523249,2.54379734,3931.2,3930.4,5.93126751]
[1761085523454,5.93062313,3931.4,3930.5,1.5552]
[1761085523655,0.4506,3931.3,3930.4,3.387]
[1761085523993,2.54375254,3931.2,3930.1,0.1586]
[1761085524283,2.54412252,3930.7,3930.1,0.1586]
[1761085524586,0.03158879,3931.2,3929.6,2.54677706]
[1761085524587,0.50688,3930.6,3929.6,2.54677706]
[1761085524882,2.54438169,3930.3,3929.6,0.002]
[1761085525454,0.97578,3930.7,3929.6,0.002]
[1761085525966,2.54414084,3930.6,3929.6,3.18581578]
[1761085526345,2.54438772,3930.3,3929.6,0.64104352]
[1761085526896,2.54426764,3930.5,3929.6,0.64104352]
[1761085527195,0.4689,3930.6,3929.7,2.54467325]
[1761085527480,1.5552,3931.3,3930.1,2.54441305]
[1761085527785,2.54389945,3931.0,3930.2,2.95738829]
[1761085528961,2.54396348,3930.9,3930.2,0.41304131]
[1761085529161,2.54402193,3930.8,3930.2,0.41304131]
[1761085529676,2.76246178,3930.9,3930.2,2.95742836]
[1761085529881,0.6874,3930.9,3930.2,0.25444131]
[1761085530054,0.03158879,3930.8,3929.6,1.09264352]
[1761085530248,0.2185,3930.9,3929.7,0.4516]
[1761085530472,3.05070125,3931.1,3929.7,2.99631812]
[1761085530749,3.8559,3931.2,3929.7,2.99631812]
[1761085530750,2.54401281,3930.8,3930.0,2.54448365]
[1761085530951,2.54388459,3931.0,3930.1,0.02544464]
[1761085531283,5.93083388,3931.1,3930.3,2.54433391]
[1761085531449,5.93083388,3931.1,3929.8,3.24734926]
[1761085531450,0.4689,3931.0,3929.8,3.24734926]
[1761085531649,2.54413608,3930.7,3929.9,0.32493493]
[1761085531883,2.54413608,3930.7,3929.9,2.86951458]
[1761085532377,2.54402897,3930.8,3930.0,2.5445281]
[1761085532880,0.4689,3930.8,3930.0,2.5445281]
[1761085533053,3.01292438,3930.8,3930.0,3.15621964]
[1761085533452,3.01292438,3930.8,3930.1,0.1586]
[1761085533453,2.54408912,3930.7,3930.1,0.1586]
[1761085533768,3.01293036,3930.8,3930.1,0.1586]
[1761085534483,2.54409289,3930.7,3930.1,0.1586]
[1761085534679,0.2185,3930.9,3930.1,2.70305122]
[1761085534981,2.54393369,3931.0,3930.2,2.90836009]
[1761085535184,3.387,3931.1,3930.2,2.90836009]
[1761085535359,3.01283244,3931.0,3930.2,0.36396777]
[1761085535566,2.54408872,3930.7,3929.9,2.54455524]
[1761085535856,2.54389591,3931.0,3929.7,0.4516]
[1761085536062,3.387,3931.1,3930.3,2.54430599]
[1761085536063,5.93083508,3931.1,3930.3,2.54430599]
[1761085536381,2.7686181,3931.9,3929.8,0.02544658]
[1761085536382,3.387,3931.7,3931.0,0.1586]
[1761085536581,0.2253,3931.9,3930.2,3.387]
[1761085536878,2.54367889,3931.4,3930.5,2.54418658]
[1761085537383,2.54367889,3931.4,3930.6,2.54413553]
[1761085538385,2.54369728,3931.3,3930.5,2.54414231]
[1761085538884,2.54369728,3931.3,3930.6,2.54411924]
[1761085539085,2.54369728,3931.3,3930.6,3.11461453]
[1761085539284,2.54349374,3931.6,3930.8,2.54400714]
[1761085539582,2.54349374,3931.6,3930.9,2.54394081]
[1761085540153,2.54337916,3931.8,3930.8,2.54400943]
[1761085540154,2.54355858,3931.5,3930.8,2.54400943]
[1761085540808,2.54355858,3931.5,3930.9,2.54394402]
[1761085541293,2.54355858,3931.5,3930.9,0.61101742]
[1761085541490,1.7805,3931.9,3930.9,0.61101742]
[1761085541790,2.54350048,3931.6,3930.9,2.56938129]
[1761085542089,2.54361152,3931.5,3930.5,0.4516]
[1761085542261,2.54361152,3931.5,3930.8,2.54399464]
[1761085542586,2.54363668,3931.4,3930.5,2.99574569]
[1761085542790,0.4689,3931.8,3930.6,0.31606457]
[1761085542996,2.54348215,3931.7,3931.0,2.5438694]
[1761085543589,2.54348215,3931.7,3931.1,0.1586]
[1761085543792,2.54336786,3931.8,3931.1,2.70238713]
[1761085543961,0.001,3932.1,3931.2,0.47703752]
[1761085544161,0.001,3932.1,3931.1,0.1586]
[1761085544397,0.4689,3932.0,3931.1,0.1586]
[1761085544562,3.01213641,3932.0,3931.1,0.1586]
[1761085544764,3.01213641,3932.0,3930.8,3.386]
[1761085544765,2.54340727,3931.8,3931.2,14.5]
[1761085545177,2.54349374,3931.6,3931.2,14.5]
[1761085545695,3.01239374,3931.6,3931.2,14.5]
[1761085545895,2.54358827,3931.5,3931.2,14.5]
[1761085546096,3.01248827,3931.5,3931.2,14.5]
[1761085546696,2.54350455,3931.6,3931.2,14.5]
[1761085546865,0.86913655,3931.6,3930.3,0.1649]
[1761085547062,2.54387921,3931.1,3930.4,1.5552]
[1761085547262,2.54387921,3931.1,3930.3,5.87338068]
[1761085547497,2.54369594,3931.3,3930.5,14.5]
[1761085547693,0.03158879,3931.2,3930.5,14.5]
[1761085547897,0.4689,3931.2,3930.5,14.5]
[1761085548099,2.544088,3930.7,3930.5,14.5]
[1761085548321,2.54381794,3931.1,3930.5,14.5]
[1761085548823,2.54401139,3930.8,3930.5,14.5]
[1761085549020,2.5440939,3930.7,3930.5,14.5]
[1761085549724,2.54402702,3930.8,3930.5,14.5]
[1761085550028,2.54407827,3930.7,3930.5,14.5]
[1761085550391,0.6874,3930.9,3930.5,14.5]
[1761085550392,2.54402674,3930.8,3930.5,14.5]
[1761085551326,3.386,3931.3,3930.5,14.5]
[1761085551327,2.54342905,3931.7,3930.6,0.4770414]
[1761085551495,3.385,3931.6,3930.7,3.41044076]
[1761085551689,3.385,3931.6,3931.0,2.54385855]
[1761085551895,3.01250664,3931.5,3930.7,3.385]
[1761085552113,2.54363771,3931.4,3930.7,3.385]
[1761085552326,0.4689,3931.4,3930.7,3.385]
[1761085552523,0.4689,3931.4,3930.2,0.1649]
[1761085552524,2.54380882,3931.2,3931.1,14.5]
[1761085553237,2.54375254,3931.2,3931.1,14.5]
[1761085553525,2.54375254,3931.2,3930.5,2.54418479]
[1761085553726,0.4291,3931.3,3930.3,7.48451681]
[1761085553905,3.385,3931.6,3930.6,2.54409384]
[1761085553906,2.54366288,3931.4,3930.6,2.54409384]
[1761085554106,3.385,3931.6,3930.7,14.5]
[1761085554429,3.385,3931.6,3930.7,17.04405283]
[1761085554621,2.54369395,3931.3,3930.7,14.5]
[1761085555423,2.54362901,3931.4,3930.7,17.04407496]
[1761085555631,2.54369638,3931.3,3930.7,14.5]
[1761085555797,2.54362409,3931.4,3930.7,17.0440757]
[1761085555997,0.2314,3930.8,3928.7,2.54536809]
[1761085556202,3.385,3930.7,3929.4,0.4287]
[1761085556506,2.54439292,3930.3,3929.5,14.503]
[1761085556835,2.54428717,3930.4,3929.6,2.54678389]
[1761085557008,2.54434895,3930.3,3929.7,1.74784839]
[1761085557200,3.385,3930.7,3929.6,0.002]
[1761085557400,2.54453378,3930.0,3929.8,14.5]
[1761085558813,2.54444725,3930.2,3929.8,14.5]
[1761085559031,2.54434284,3930.3,3929.8,14.5]
[1761085559512,2.54440128,3930.2,3929.8,14.5]
[1761085559906,2.97336397,3930.5,3929.8,14.5]
[1761085560237,2.5442703,3930.4,3929.8,14.5]
[1761085560623,2.54433699,3930.3,3929.8,14.5]
[1761085560810,2.54455891,3930.0,3929.8,14.5]
[1761085561014,2.54455891,3930.0,3929.6,0.002]
[1761085561015,2.54471306,3929.8,3929.6,0.002]
[1761085561333,0.2314,3929.9,3929.6,0.002]
[1761085561334,5.92972351,3929.7,3929.6,0.002]
[1761085561630,6.35882351,3929.7,3929.6,0.002]
[1761085562003,8.42090351,3929.7,3929.6,0.002]
[1761085562923,2.878074,3929.6,3929.0,0.003]
[1761085563235,4.60719211,3929.1,3929.0,0.003]
[1761085563443,3.384,3929.2,3929.0,0.003]
[1761085564032,5.92905414,3929.2,3929.0,0.003]
[1761085564343,3.384,3929.2,3929.0,0.003]
[1761085564644,5.92907854,3929.2,3929.0,0.003]
[1761085564844,3.384,3929.2,3929.0,0.003]
[1761085566031,3.13801213,3929.1,3929.0,0.003]
[1761085566236,4.07399213,3929.1,3929.0,0.003]
[1761085566437,4.07399213,3929.1,3927.7,0.003]
[1761085566438,9.33216521,3928.5,3927.7,0.003]
[1761085566746,3.28423447,3927.8,3927.7,0.003]
[1761085566947,7.25224469,3927.8,3927.7,0.003]
[1761085567143,7.09833447,3927.8,3927.7,0.003]
[1761085568322,8.65353447,3927.8,3927.7,0.003]
[1761085568522,4.10128412,3927.6,3927.5,0.003]
[1761085568725,4.60816412,3927.6,3927.5,0.003]
[1761085568922,7.0904425,3927.6,3927.5,0.003]
[1761085569122,9.9685165,3927.6,3927.5,0.003]
[1761085570210,2.54653798,3926.9,3926.8,0.003]
[1761085570411,11.10309198,3926.9,3926.8,0.003]
[1761085570734,12.62872209,3926.9,3926.8,0.003]
[1761085570935,12.42126109,3926.9,3926.8,0.003]
[1761085571450,1.83481011,3926.9,3926.8,0.003]
[1761085571649,0.6605,3927.8,3926.8,0.003]
[1761085571950,2.54616378,3927.5,3926.8,0.003]
[1761085572126,2.54646206,3927.1,3926.8,0.003]
[1761085572332,0.50688,3926.9,3926.8,0.003]
[1761085572648,0.50688,3927.4,3926.8,0.003]
[1761085572816,1.68296828,3927.5,3926.8,0.003]
[1761085573012,0.50688,3927.2,3926.8,0.003]
[1761085573427,0.50688,3927.0,3926.8,0.003]
[1761085573850,0.96756879,3926.9,3926.8,0.003]
[1761085574058,3.48251798,3926.9,3926.8,0.003]
[1761085575749,17.27954598,3926.9,3926.8,0.003]
[1761085575955,19.56905406,3926.9,3926.8,0.003]
[1761085576552,19.32345106,3926.9,3926.8,0.003]
[1761085576849,19.56905406,3926.9,3926.8,0.003]
[1761085577049,19.56905406,3926.9,3926.8,1e-08]
[1761085577554,19.56905406,3926.9,3925.0,0.1606]
[1761085577555,2.878074,3926.5,3922.9,0.4317]
[1761085577854,0.50688,3925.5,3923.9,0.1679]
[1761085578059,0.50688,3924.8,3923.9,2.71637586]
[1761085578224,1.5552,3925.5,3923.9,2.71637586]
[1761085578225,0.23792142,3927.6,3924.0,1.5582]
[1761085578430,3.8151,3926.7,3924.1,0.62679355]
[1761085578642,0.4291,3926.6,3924.8,1.5552]
[1761085578842,0.4291,3926.6,3924.9,14.5]
[1761085579056,0.4291,3926.6,3925.2,2.54758685]
[1761085579057,2.54693266,3926.3,3925.2,2.54758685]
[1761085579231,3.89288,3926.2,3925.3,0.30285646]
[1761085579427,0.4291,3926.6,3925.3,0.30285646]
[1761085579639,0.50688,3926.4,3925.3,2.54756683]
[1761085579845,2.5469957,3926.2,3925.2,2.54763398]
[1761085580040,2.5469957,3926.2,3925.1,0.1606]
[1761085580041,3.386,3926.1,3925.1,0.1606]
[1761085580264,3.386,3926.1,3925.1,0.6161]
[1761085580434,3.386,3926.1,3925.3,2.54751909]
[1761085580752,3.386,3926.3,3925.3,2.54757598]
[1761085580952,3.386,3926.3,3925.1,1.67221]
[1761085580953,3.386,3926.5,3925.4,0.4555]
[1761085581146,3.386,3926.5,3925.7,2.54726677]
[1761085581342,3.386,3926.5,3925.5,17.04744618]
[1761085581343,3.386,3926.5,3925.6,2.54738129]
[1761085581571,3.386,3926.5,3925.7,2.005035]
[1761085581753,0.53846879,3926.4,3925.5,14.5]
[1761085581956,0.50688,3926.2,3925.5,14.5]
[1761085582155,3.05401842,3926.0,3925.1,0.1606]
[1761085582370,0.50688,3925.8,3925.1,0.1606]
[1761085582663,3.386,3925.7,3925.1,0.1606]
[1761085582865,3.386,3925.8,3925.1,0.1606]
[1761085583057,5.93330663,3925.8,3925.1,0.1606]
[1761085583257,0.4577,3926.9,3925.2,0.4555]
[1761085583565,0.4577,3926.9,3925.3,0.02547575]
[1761085583765,0.4577,3926.9,3925.2,0.4555]
[1761085583766,2.54680912,3926.5,3925.2,3.00312339]
[1761085584136,0.2314,3926.8,3925.3,0.4332]
[1761085584334,2.878074,3927.2,3925.3,0.4332]
[1761085584538,2.54655609,3926.9,3925.9,2.54716948]
[1761085584765,0.03158879,3926.8,3925.4,0.5773441]
[1761085584939,2.54678676,3926.6,3925.5,2.54744618]
[1761085585136,3.388,3926.6,3925.6,2.5473609]
[1761085585361,3.388,3926.6,3925.9,2.5471803]
[1761085586073,3.388,3926.6,3925.5,2.9806459]
[1761085586250,5.93474943,3926.6,3925.6,0.355799]
[1761085586566,3.388,3926.6,3925.9,2.54713337]
[1761085586769,3.388,3926.6,3926.0,2.54711829]
[1761085586937,3.388,3926.6,3925.9,2.54716858]
[1761085587333,3.388,3926.6,3925.7,2.5473164]
[1761085587549,3.388,3926.6,3925.9,2.54713419]
[1761085588247,3.387,3926.8,3925.9,2.54713419]
[1761085588460,0.2247,3926.9,3925.7,0.39136595]
[1761085588461,0.4581,3927.6,3926.5,0.1627]
[1761085588660,2.54621763,3927.4,3926.6,0.02546732]
[1761085588848,2.5464876,3927.0,3925.5,1.5552]
[1761085589048,2.54652739,3927.0,3926.1,2.70970847]
[1761085589255,0.4581,3927.4,3926.1,0.1627]
[1761085589449,3.38883294,3927.4,3926.1,0.5959]
[1761085589752,2.54630587,3927.3,3926.4,2.54680504]
[1761085589946,2.54634694,3927.2,3926.4,2.54680504]
[1761085590161,2.54643449,3927.1,3926.2,2.54693226]
[1761085590671,2.54632849,3927.3,3926.1,0.5959]
[1761085590970,2.54651808,3927.0,3926.2,2.54695716]
[1761085591171,2.54651808,3927.0,3926.3,2.54691295]
[1761085591335,3.93659415,3927.3,3926.3,2.54691295]
[1761085591336,2.54640801,3927.2,3926.3,2.54691295]
[1761085591537,3.387,3927.5,3926.4,0.4332]
[1761085591751,5.9331972,3927.5,3926.7,2.54665971]
[1761085592177,2.54606532,3927.7,3926.5,0.02546797]
[1761085592472,2.54622034,3927.4,3926.5,2.54675283]
[1761085592673,2.54622034,3927.4,3926.6,2.54671409]
[1761085593043,2.54622034,3927.4,3926.5,0.552688]
[1761085593044,2.54622034,3927.4,3926.7,2.54666649]
[1761085593239,2.54629985,3927.3,3926.5,0.552688]
[1761085593451,2.54623164,3927.4,3926.6,2.54672428]
[1761085594578,3.387,3927.3,3926.5,0.02546797]
[1761085594779,3.387,3927.3,3926.6,2.54668326]
[1761085594945,3.387,3927.3,3926.3,2.54692713]
[1761085595143,5.93332281,3927.3,3926.5,2.5467974]
[1761085595483,2.54638867,3927.2,3926.4,2.54681703]
[1761085595780,2.54638867,3927.2,3926.2,2.546992]
[1761085595781,2.54638867,3927.2,3926.5,2.54678541]
[1761085596074,2.54638867,3927.2,3926.4,2.54685966]
[1761085596292,2.54666714,3926.8,3926.1,0.1627]
[1761085596577,2.54641397,3927.1,3926.1,0.1627]
[1761085596777,2.54636054,3927.2,3926.4,2.54681788]
[1761085596980,0.67525275,3928.3,3926.4,2.54681788]
[1761085596981,3.22077812,3928.5,3927.2,0.1679]
[1761085597285,0.2247,3928.6,3927.7,2.54596924]
[1761085597459,3.00334823,3928.9,3927.9,2.54587665]
[1761085597660,2.54546143,3928.6,3927.7,2.54596022]
[1761085597867,3.1003424,3928.6,3927.5,2.54614684]
[1761085598068,2.54560211,3928.4,3927.6,2.54607411]
[1761085598266,3.00361705,3928.5,3927.6,2.54607411]
[1761085598480,3.386,3928.4,3927.7,2.54598722]
[1761085599688,3.386,3928.4,3927.8,2.54590501]
[1761085600363,3.386,3928.4,3927.9,2.5458433]
[1761085600560,3.94088097,3928.6,3927.9,2.5458433]
[1761085600997,5.93147419,3928.6,3927.4,2.54616126]
[1761085601286,2.54551588,3928.5,3927.6,2.54607669]
[1761085601459,2.54551588,3928.5,3927.7,2.54601012]
[1761085603771,2.54557911,3928.4,3927.7,2.54601012]
[1761085603985,2.54550502,3928.5,3927.7,2.54601012]
[1761085604159,3.43900394,3928.5,3927.7,2.54601012]
[1761085605091,2.54556597,3928.4,3927.7,2.54601012]
[1761085605392,3.4390189,3928.5,3927.7,2.54601012]
[1761085607089,0.89349892,3928.5,3927.8,2.54594864]
[1761085607670,3.43900035,3928.5,3927.8,2.54594864]
[1761085608400,3.43900035,3928.5,3927.7,2.54600022]
[1761085608791,2.5455781,3928.4,3927.7,2.54600022]
[1761085608997,3.43902191,3928.5,3927.7,2.54600022]
[1761085610107,3.43902191,3928.5,3927.8,2.5459356]
[1761085610314,3.43902191,3928.5,3927.5,0.4332]
[1761085610517,0.89995275,3929.9,3927.5,0.6533332]
[1761085610684,2.54468063,3929.8,3928.6,2.54538269]
[1761085610880,2.54488127,3929.5,3928.4,3.37]
[1761085611113,2.54488127,3929.5,3928.4,5.91553556]